Cogmind - Beta 15 @@@ ROGUE MODE // 2025.09.30 @ 16:22:42 Player: Kotyk77 Result: Destroyed by YI-UF0 with YI-UF0's Doublenader Performance ------------- Evolutions (0) 0 Regions Visited (2) 400 Robots Destroyed (16) 80 Value Destroyed (343) 343 Prototype IDs (0) 0 Alien Tech Used (0) 0 Bonus (32) 32 TOTAL SCORE: 855 Bonus ------- Follower Combat Kills 32 Cogmind --------- Core Integrity 0/250 Matter 290/300 Energy 99/100 System Corruption 0% Temperature Cool (0) Movement Core (1350) Ox26 Location -10/Mines Parts ------- > --- POWER (1) -------- (None) > --- PROPULSION (2) --- (None) > --- UTILITY (2) ------ Huge Storage Unit Sensor Array > --- WEAPON (2) ------- (None) > --- INVENTORY (25) --- Ion Engine Light Ion Engine Light Ion Engine Light Ion Engine Light Nuclear Core Aluminum Leg Aluminum Leg Aluminum Leg Aluminum Leg Aluminum Leg Flight Unit Flight Unit Flight Unit Flight Unit Huge Storage Unit High-capacity Matter Pod (130) Faulty Experimental Sensor Array Propulsion Shielding Small Laser Beam Cannon Light Assault Rifle Light Assault Rifle Grenade Launcher Mining Laser Peak State ------------ > --- POWER ------------ Ion Engine > --- PROPULSION ------- Compact Wheel Compact Wheel > --- UTILITY ---------- Huge Storage Unit Improved Terrain Scanner > --- WEAPON ----------- Medium Laser Grenade Launcher > --- INVENTORY -------- Light Ion Engine Light Ion Engine Light Nuclear Core Aluminum Leg Aluminum Leg Aluminum Leg Aluminum Leg Aluminum Leg Aluminum Leg Flight Unit Huge Storage Unit High-capacity Matter Pod Sensor Array Small Laser Beam Cannon Assault Rifle Grenade Launcher Grenade Launcher [Rating: 11] Favorites ----------- Power Ion Engine Engine Ion Engine Propulsion Compact Wheel Leg Aluminum Leg Wheel Compact Wheel Utility Huge Storage Unit Device Sensor Array Storage Huge Storage Unit Weapon Medium Laser Energy Gun Medium Laser Ballistic Gun Assault Rifle Launcher Grenade Launcher Build | -11 -10 -10 ------- Run | Yrd Mat Min Slots Evolved . | . . . Power . | . . . Propulsion . | . . . Utility . | . . . Weapon . | . . . Parts Attached 18 | 8 3 7 Power 3 | 2 . 1 Engine 3 | 2 . 1 Core . | . . . Reactor . | . . . Propulsion 6 | 2 2 2 Treads . | . . . Leg 3 | . 1 2 Wheel 3 | 2 1 . Hover . | . . . Flight . | . . . Utility 4 | 2 1 1 Device 2 | 1 . 1 Storage 2 | 1 1 . Processor . | . . . Hackware . | . . . Protection . | . . . Artifact . | . . . Weapon 5 | 2 . 3 Energy Gun 1 | 1 . . Energy Cannon . | . . . Ballistic Gun 1 | 1 . . Ballistic Cannon . | . . . Launcher 3 | . . 3 Special Weapon . | . . . Impact Weapon . | . . . Slashing Weapon . | . . . Piercing Weapon . | . . . Special Melee Weapon . | . . . Unidentified Prototypes . | . . . Parts Lost 9 | . 1 8 Power 1 | . . 1 Propulsion 4 | . 1 3 Utility 1 | . . 1 Weapon 3 | . . 3 Highest Loss Streak 6 | . 1 6 To Critical Strikes . | . . . Average Backups 17 | 2 10 23 Power 3 | . 1 4 Propulsion 6 | 1 4 8 Utility 2 | . 1 3 Weapon 5 | . 3 7 Tool/Special . | . . . Unused Backups 20 | . . 20 Power 3 | . . 3 Propulsion 7 | . . 7 Utility 4 | . . 4 Weapon 6 | . . 6 Tool/Special . | . . . Average Slot Usage (%) 98 | . 99 98 Engine 13 | . 13 13 Leg 5 | . . 10 Wheel 21 | . 27 17 Device 14 | . 14 14 Storage 14 | . 14 14 Energy Gun 13 | . 14 13 Ballistic Gun 5 | . 14 . Launcher 8 | . . 14 Peak Build Rating 11 | 9 10 11 Average Rating 9 | 4 9 9 On Entrance 6 | . 9 10 Naked Turns . | . . . Heaviest Build 91 | 15 90 91 Greatest Support 32 | 26 32 32 Greatest Overweight (x) 26 | 3 5 26 Average Overweight (x) 3 | . 2 4 Largest Inventory Capacity 25 | 8 25 25 Average Capacity 24 | 7 24 25 Most Carried 25 | 3 16 25 Average Carried 17 | 2 10 23 Final Capacity 25 | 8 25 25 Final Carried 24 | 3 16 24 Class Distribution -------------------- 100% | Mutant Dominant Class ---------------- Mutant | -10/Materials Mutant | -10/Mines Resources | -11 -10 -10 ----------- Run | Yrd Mat Min Matter Collected 641 | 256 191 194 Remotely . | . . . Salvage Created 346 | 18 277 51 Parts 30 | 3 13 14 Haulers Intercepted . | . . . Recyclers Shooed 3 | . 2 1 Parts Field Recycled . | . . . Retrieved Matter . | . . . Parts Self-Destructed . | . . . Prevented . | . . . Kills | -11 -10 -10 ------- Run | Yrd Mat Min Combat Hostiles Destroyed 14 | . 6 8 Guns 6 | . 6 . AOE 8 | . . 8 Classes Destroyed 4 | 1 2 1 Tunneler 1 | 1 . . Watcher 1 | . 1 . Swarmer 8 | . . 8 Grunt 6 | . 6 . Best Kill Streak 3 | 1 2 3 Combat Bots Only 3 | . 2 3 Max Kills in Single Turn 3 | 1 1 3 Gunslinging . | . . . Exploded 3 | . . 3 Melee . | . . . Uniques/NPCs Destroyed . | . . . Combat | -11 -10 -10 -------- Run | Yrd Mat Min Hostile Shots Fired 79 | . 34 45 Missed 24 | . 7 17 Hits 55 | . 27 28 Projectile 55 | . 27 28 AOE 10 | . . 10 Damage Taken 883 | . 326 557 Core 267 | . 79 188 Absorbed by Shields . | . . . Core Remaining (%) 100 | 100 . . Volleys Fired 31 | 2 21 8 Largest 2 | 2 2 2 Hottest 80 | 70 70 80 Shots Fired 61 | 4 42 15 Gun 53 | 4 42 7 Cannon . | . . . Launcher 8 | . . 8 Special . | . . . Kinetic 23 | 2 21 . Thermal 30 | 2 21 7 Explosive 8 | . . 8 Electromagnetic . | . . . Robot Hit Streak 9 | 3 9 2 Robot Miss Streak 3 | . 3 3 Penetration Max . | . . . Secondary Targets 1 | . 1 . Max Gunslinging Chain 1 | . 1 . Shots Hit Robots 37 | 3 30 4 Core Hits 27 | 1 16 10 Critical Kills . | . . . Critical Parts Destroyed . | . . . Critical Strikes 1 | 1 . . Burn 1 | 1 . . Melee Attacks . | . . . Impact . | . . . Slashing . | . . . Piercing . | . . . Sneak Attacks . | . . . Combat Hostiles . | . . . Follow-up Attacks . | . . . Damage Inflicted 941 | 37 398 506 Guns 429 | 37 379 13 Cannons . | . . . Explosions 493 | . . 493 Melee . | . . . Ramming 19 | . 19 . Kinetic 217 | 11 206 . Thermal 212 | 26 173 13 Explosive 493 | . . 493 Electromagnetic . | . . . Impact . | . . . Slashing . | . . . Piercing . | . . . Highest Corruption . | . . . Average Corruption . | . . . Corruption Purged . | . . . Corruption Blocked . | . . . Overload Shots . | . . . Overflow Damage 37 | . . 37 Projectiles . | . . . Explosions 37 | . . 37 Melee . | . . . Knockbacks . | . . . Impact . | . . . Kinetic . | . . . Secondary . | . . . Self-Inflicted Damage 61 | . 9 52 Shots 3 | . . 3 Rammed 1 | . 1 . Targets Rammed 1 | . 1 . Kicked . | . . . Crushed . | . . . Highest Temperature 147 | 18 147 72 Average Temperature 42 | 10 49 28 Received Heat Transfer 234 | . 180 54 Siege Activations . | . . . Martial Activations . | . . . Shielding Activations . | . . . Robots Disrupted . | . . . Combat Hostiles . | . . . Robots Corrupted . | . . . Combat Hostiles . | . . . Parts Fried . | . . . Impact Corruptions . | . . . Robots Melted . | . . . Combat Hostiles . | . . . Parts Melted . | . . . Heat Transferred 703 | 148 518 37 Parts Sabotaged . | . . . Parts Stolen . | . . . Parts Stripped . | . . . Power Chain Reactions . | . . . Alert | -11 -10 -10 ------- Run | Yrd Mat Min Maximum Alert Level . | . . . Low Security (%) 100 | 100 100 100 Level 1 . | . . . Level 2 . | . . . Level 3 . | . . . Level 4 . | . . . Level 5 . | . . . High Security . | . . . Max Security . | . . . Peak Influence 134 | 5 42 134 Initial . | . . . Average 36 | . 10 58 Influence Increases 488 | 5 156 327 Destroy 0b10 Robot/C 320 | . 120 200 Destroy 0b10 Robot/NC 10 | 5 5 . Destroy Leader 52 | . 22 30 Allied During Kill 6 | . . 6 Successful Hack 9 | . 9 . Disable Machine 15 | . . 15 Destroy Structure 31 | . . 31 Lose Combat Pursuer 45 | . . 45 Influence Decreases 488 | 5 156 327 Time Decay 438 | 5 146 287 Lost Part 30 | . 10 20 Lost Ally 20 | . . 20 Squads Dispatched . | . . . Investigation . | . . . Extermination . | . . . Reinforcement . | . . . Assault . | . . . Garrison . | . . . Intercept . | . . . Searches Triggered . | . . . Construction Impeded . | . . . Haulers Reinforced . | . . . Active Scanning Responses . | . . . Cargo Convoy Interrupts . | . . . Stealth | -11 -10 -10 --------- Run | Yrd Mat Min Distress Signals 1 | . 1 . Communications Jammed . | . . . Distress Signals . | . . . Times Spotted 21 | . 7 14 Peak Tracking Total 3 | . 2 3 Tactical Retreats 2 | . . 2 Traps | -11 -10 -10 ------- Run | Yrd Mat Min Traps Triggered 1 | . 1 . Indirectly . | . . . Trap Hack Attempts . | . . . Triggered . | . . . Disarmed . | . . . Reprogrammed . | . . . Reused . | . . . Traps Extracted . | . . . Installed . | . . . Triggered . | . . . Machines | -11 -10 -10 ---------- Run | Yrd Mat Min Machines Disabled 1 | . . 1 Max in Single Turn 1 | . . 1 Machines Repaired . | . . . Machines Dismantled . | . . . Machines Sabotaged . | . . . Overloaded Fab Kills . | . . . Hacking | -11 -10 -10 --------- Run | Yrd Mat Min Machines Accessed 3 | . 3 . Terminals 3 | . 3 . Fabricators . | . . . Repair Stations . | . . . Recycling Units . | . . . Scanalyzers . | . . . Garrison Access . | . . . Total Hacks 9 | . 9 . Successful 3 | . 3 . Failed 6 | . 6 . Catastrophic 1 | . 1 . Database Lockouts . | . . . Manual 7 | . 7 . Terminals 9 | . 9 . Fabricators . | . . . Repair Stations . | . . . Recycling Units . | . . . Scanalyzers . | . . . Garrison Access . | . . . Terminal Hacks 2 | . 2 . Robot Analysis 1 | . 1 . Locate Traps 1 | . 1 . Fabricator Hacks . | . . . Repair Station Hacks . | . . . Recycling Unit Hacks . | . . . Scanalyzer . | . . . Garrison Access Hacks . | . . . Unauthorized Hacks 1 | . 1 . Terminals 1 | . 1 . Botnet 1 | . 1 . Fabricators . | . . . Repair Stations . | . . . Recycling Units . | . . . Scanalyzers . | . . . Garrison Access . | . . . Data Cores Recovered . | . . . Used . | . . . Hacking Detections 2 | . 2 . Full Trace Events . | . . . Feedback Events . | . . . Feedback Blocked . | . . . Robot Schematics Acquired . | . . . Robots Built . | . . . Authchips . | . . . Time . | . . . Total Robot Build Rating . | . . . Part Schematics Acquired . | . . . Parts Built . | . . . Authchips . | . . . Time . | . . . Total Part Build Rating . | . . . Parts Repaired . | . . . Time . | . . . Parts Recycled . | . . . Recycled Matter . | . . . Retrieved Matter . | . . . Retrieved Components . | . . . Parts Scanalyzed . | . . . Part Schematics Acquired . | . . . Parts Damaged . | . . . Bothacking | -11 -10 -10 ------------ Run | Yrd Mat Min Used RIF Installer . | . . . Robots Hacked . | . . . Non-combat . | . . . Combat . | . . . Robot Hacks Applied . | . . . Relay Couplers Released . | . . . Fabnet Peak Effective % . | . . . Robots Rewired . | . . . Allies Hacked . | . . . Hacks Repelled . | . . . Allies | -11 -10 -10 -------- Run | Yrd Mat Min Total Allies 4 | . . 4 Largest Group 3 | . . 3 Highest-Rated Group 40 | . . 40 Highest-Rated Ally 31 | . . 31 Total Orders . | . . . Ally Attacks 14 | . . 14 Total Damage 154 | . . 154 Kills 2 | . . 2 Allies Corrupted . | . . . Allies Melted . | . . . Intel | -11 -10 -10 ------- Run | Yrd Mat Min Active Infowar (turns) 1405 | 5 581 819 Sensors 727 | . . 727 Terrain 678 | 5 581 92 Robot Analysis Total 1 | . 1 . Derelict Logs Recovered . | . . . Drone Launches . | . . . Drone Recoveries . | . . . Exploration | -11 -10 -10 ------------- Run | Yrd Mat Min Turns Passed 1471 | 66 581 824 Spaces Moved 891 | 44 371 476 Core 11 | 10 . 1 Treads . | . . . Legs . | . . . Wheels 880 | 34 371 475 Hover . | . . . Flight . | . . . Fastest Speed 50 | 50 90 130 Average Speed 147 | 106 130 165 Slowest Speed 1350 | 200 175 1350 Overloaded Moves . | . . . Propulsion Burnouts . | . . . Robots Hopped . | . . . Potential Cave-ins . | . . . Cave-ins Triggered . | . . . Exploration Rate (%) 38 | 4 41 71 Regions Visited 2 Branch Regions 1 Pre-discovered Areas . | . . . Known Exits Taken . | . . . Unknown Exits Taken 2 | 1 1 . Scrap Searched . | . . . Spaces Dug . | . . . Terrain Destroyed 37 | . . 37 Melee . | . . . Projectile . | . . . AOE 37 | . . 37 Terrain Rammed . | . . . Walls Destroyed . | . . . Machines Disabled . | . . . Actions | -11 -10 -10 --------- Run | Yrd Mat Min Total 986 | 55 424 507 Wait 13 | . 13 . Move 889 | 43 370 476 Hop . | . . . Pick Up 27 | 2 13 12 Fast Attach 10 | 7 3 . Attach 3 | . . 3 Detach . | . . . Swap 9 | 1 2 6 Drop 3 | . 1 2 Fire 31 | 2 21 8 Melee . | . . . Ram 1 | . 1 . Kick . | . . . Crush . | . . . Escape Stasis . | . . . Rewire . | . . . Trap . | . . . Miscellaneous . | . . . Route ------- -11/Scrapyard -10/Materials (discovered 2 exits: [*Mat] / [*Min]) -10/Mines (discovered 3 exits: [*Mat x2] / [*Sub]) History --------- Turn | Location | Event 17 | -11/Scrapyard | Discovered new exit (range 16) 67 | -11/Scrapyard | Entered Materials 312 | -10/Materials | Build established: Mutant 333 | -10/Materials | Discovered new exit (range 14) 364 | -10/Materials | Discovered new exit (range 16) 648 | -10/Materials | Entered Mines 660 | -10/Mines | Received a Mining Laser from a helpful Derelict 808 | -10/Mines | YI-UF0 nonchalantly dropped a Grenade Launcher on the ground 916 | -10/Mines | Found a damaged Exp. Sensor Array with a note attached 919 | -10/Mines | Found Prototype Device 964 | -10/Mines | Assisted by bots powering up and referring to "LRC-V3" 1181 | -10/Mines | Discovered new exit (range 5) 1362 | -10/Mines | Discovered new exit (range 13) 1465 | -10/Mines | Discovered new exit (range 15) 1467 | -10/Mines | Core integrity fell below 50% 1469 | -10/Mines | Core integrity fell below 20% 1472 | -10/Mines | Destroyed by YI-UF0 with YI-UF0's Doublenader Last Messages --------------- 01233_ K-01 Serf collects debris. 01239_ K-01 Serf destroyed. 01261_ K-01 Serf collects debris. 01283_ K-01 Serf cleans the Pressure Siphon. 01362_ EXIT=FOUND 01464_ Med. Laser destroyed. 01464_ Aluminum Leg destroyed. 01464_ Grenade Launcher destroyed. 01464_ Ion Engine destroyed. 01465_ EXIT=FOUND 01466_ YI-UF0 mumbles something. 01466_ The unstable cave ceiling collapses. 01466_ YI-UF0: "KAPOW!" 01466_ Trooper 1a destroyed. 01468_ YI-UF0: "WHAAM!" 01468_ Trooper 1b destroyed. 01468_ Com. Wheel destroyed. 01470_ Grenade Launcher destroyed. 01470_ Mercenary 1a destroyed. 01470_ K-01 Serf collects debris. Map ----- +----------------------------------------------------+ | ####### ## #????????????# #### ##? | | !#??????????????????## ##?? | | #### ## # | ##??????????????????## #?? | | ???# ## # ! ##????????????????? ? | | ???# ## ## ### #????????????????# | | #### ### ##?##% #???????????????# | | # #?# ##???# #??????????????# | | # """ #?## ##????## #?????????????? % | | # #??####??????? ????????????# | | # #?????????????# ???????????## | | ## #####?????????? ???????????# | | ## ##????????? ??????????# | | ####??????# ##????????? | | ## ####????# ##?????????? | | #### #?????####??????????? # | | ##?# #?????###???????????? # ? | | #??# [ #????# ##?????????????? ?% ?? | | # #??##!%= #??## ##??????????????????? | | ## #### #### #???##?????????????? | | ?## ## ### # # # #?? #?????????????? | | ??##### # # ## # ##???????????? | | ??????# = # ###?????????? | | ??????## ! [ ! %* # ?????????? | | ???????# # ! ????????? | | ???????## # % ????????? | | ??????# @ ????????? | | ??????# # ##### ????????? | | ??????### #???# %* ????????? | | ?????#??# #???## # % ?????????? | | ????????# #??###### # ?????????? | | ????????# ### ##?### ### # # ??????????? | | ?#??????# ## #######?? # #? g#????????????? | | ??????### ? #?? = ???????????? | | ??????# ? ??? %%k???????????? | | ??????## #####???? ??? < ???????????? | | ???#?## ##???????? ??? ????????????? | | ????## ##????# ??### ????????????????? | | ????# ## #??????????? ???????????????? | | ????# ! ## #??????????? ?????????????????? | | ????# #### ##???????????????????????????????? | | ????# ##?## #????????????????????????????????? | | ?#??# ##### #????????????????????????????????? | | ###?# # #????????????????????????????????? | | ##### #????????????????????????????????? | | #?### # ##??#?????????????????????????????? | | ###### #######????????????????????????????????? | | * #?#??#?????????????????????????????????? | | #??????????????????????????????????????? | | ## #######??????????????????????????????????????? | | ######?????????#?????????????????????????????????? | +----------------------------------------------------+ Best States ------------- Heat Dissipation 25 Energy Generation 10 Energy Capacity 250 Matter Stores 300 Matter Capacity 300 Sight Range 16 Robot Scan Range 14 Terrain Scan Range 16 Terrain Scan Density 10 Evasion (%) 42 Item Schematics ----------------- None Robot Schematics ------------------ None Fabricated ------------ Nothing Repaired ---------- Nothing Alien Tech Used ----------------- None Achievements -------------- None Challenges ------------ None Game ------ Seed NeutrinoAlphaGreatsword Manual? 0 Play Time 00:12:44 Cumulative 72.3 hours Start 2025.09.30 @ 16:09:34 End 2025.09.30 @ 16:22:42 Sessions 1 Manual Loads 0 Difficulty Rogue Special Mode None Game No. 77 Rogue 77 Adventurer 0 Explorer 0 Win Type - Total 0 Types 0/0/0/0/0/0/0/0/0/0 Lore% 20 Gallery% 35 Achievement% 29 Wizard Run 0 Options --------- Layout 1 ASCII 0 Keyboard 0 Movement Numpad Keybinds 0 Fullscreen 1 Font 32/SmallcapsGlow Map View 77x35 Zoom Use 0% Tactical HUD 1 Map Filters NONE Filters NONE Steam 1 RUN: 7ef4105f-9499-4dc3-a628-4a7d0e446170